{"text_format":"2","workbook":"xlsx","n_sheets":5,"sheets":["Общие сведения","Показатели","Аффилированные организации","Бланк подтверждения","ИБ"],"not_rendered":{"charts":0,"images":1,"macros":0,"external_links":0,"defined_names":0,"comments":1,"pivot_tables":0},"unopened":[],"bounds":{"document_bytes":16777216,"sheet_cells":100000,"run_cost":"one","rows_first":2000,"rows_last":500,"rows_between":2000,"halvings":0,"cell_chars":16384,"cell_head_chars":4096},"cells_cut":0,"cells_raw":0,"read":"whole","date_system":"1900"}

{"sheet":"Общие сведения","index":0,"n_rows":30,"n_cols":4,"rows_kept":30,"cut":false,"hidden":false,"merged":[[1,2,8,3],[0,0,0,3],[28,0,28,3],[16,2,16,3],[17,2,17,3],[18,0,18,1],[18,2,18,3],[29,0,29,3],[16,0,17,0],[13,0,13,1],[9,0,10,1],[14,0,15,1],[11,0,12,1],[21,0,22,1],[27,0,27,3],[20,0,20,1],[19,0,19,1],[23,0,26,1],[20,2,20,3],[19,2,19,3]]}
["Анкета RAEX для участия в ежегодных рэнкингах \n\"Российские информационные и коммуникационные технологии\""]
["Наименование организации (с сокращённой организационно-правовой формой: ООО, АО и т.д.)."]
["ИНН организации."]
["Фактический адрес организации."]
["Юридический адрес организации."]
["Адрес организации (для курьерской доставки документов)."]
["Номер телефона."]
["Электронная почта."]
["Интернет-сайт."]
["1.* Число ИТ-компаний в группе (число аффилированных лиц с учётом материнской или управляющей компании).",null,"На 31.12.2024","На 31.12.2025"]
[]
["2.* Среднесписочная численность всех сотрудников. Заполняется согласно сведениям титульного листа формы расчётов по страховым взносам. Для группы компаний указывается сумма: головная + аффилированные лица.",null,"За 2024 год","За 2025 год"]
[]
["2.1.* В том числе специалисты, участвующие в ИТ-проектах и обеспечившие суммарную выручку от ИТ-деятельности, отраженную в пункте №1 листа \"Показатели\". Термин \"специалисты\" обозначает сотрудников, выполняющих работу в сфере ИТ для заказчика (без учёта административных и внутренних сервисных служб)."]
["3. Внутригрупповая выручка (взаимозачёты, доходы от услуг и работ между зависимыми компаниями группы). Согласно методике рэнкинга этот показатель не должен учитываться при расчёте суммарного дохода от ИТ-деятельности, отражённого в пункте №1 листа \"Показатели\".",null,"За 2024 год","За 2025 год"]
[]
["4. Если Ваша компания является производителем оборудования, то укажите, пожалуйста, название предприятия и торговую марку выпускаемой продукции (торговая марка будет отражена в суб-рэнкинге по направлению \"Производство оборудования\".","Название предприятия","Торговая марка"]
[]
["5. Укажите название аудиторской организации, которая проводит аудит отчётности головной компании."]
["6. Укажите клиента, доля полученной выручки от которого превышает 25% в общем доходе компании (или группы)."]
["7. Назовите, пожалуйста, организации (из вашей практики), которые в исследуемом периоде при отборе поставщиков ИТ-услуг и продукции указывали среди требований к подрядчикам участие в рэнкингах RAEX."]
["8. Должность и ФИО руководителя организации.",null,"Должность","ФИО"]
[]
["9. Контактное лицо для взаимодействии в рамках рэнкинга.",null,"Должность","ФИО"]
[]
[null,null,"Номер телефона","E-mail"]
[]
["Пояснения к пунктам, отмеченных * смотрите в инструкции к анкете (файл instruct.doc)"]
["При отражении в анкете данных за 2024 год, приводите, пожалуйста, показатели выручки и специалистов (за 2024 год) в соответствии с опубликованной информацией (см. предыдущий рэнкинг \"Российские ИКТ\"). Для расчёта и отражения в рэнкинге темпов роста выручки и числа специалистов за год, организатор рэнкинга вправе не уведомляя участника использовать ранее опубликованные показатели за 2024 год (при отсутствии комментария участника о пересчёте им рассматриваемых показателей за 2024 год)."]
["Пожалуйста, перейдите к заполнению следующего листа"]

{"sheet":"Показатели","index":1,"n_rows":63,"n_cols":7,"rows_kept":63,"cut":false,"hidden":false,"merged":[[13,0,13,1],[12,0,12,1],[8,4,8,6],[9,4,9,6],[10,0,10,6],[11,0,11,1],[11,4,11,6],[12,4,12,6],[13,4,13,6],[62,0,62,6],[41,0,41,6],[61,0,61,6],[35,4,35,6],[36,4,36,6],[36,0,36,1],[37,0,37,6],[38,0,39,3],[24,4,24,6],[26,4,26,6],[27,4,27,6],[14,0,14,6],[20,0,20,6],[25,0,25,6],[22,4,22,6],[23,4,23,6],[15,0,15,1],[17,4,17,6],[19,4,19,6],[15,4,15,6],[16,4,16,6],[21,4,21,6],[18,4,18,6],[19,0,19,1],[4,0,4,1],[8,0,8,1],[9,0,9,1],[6,0,6,1],[7,0,7,1],[5,0,5,6],[4,4,4,6],[6,4,6,6],[7,4,7,6],[0,0,0,6],[1,4,2,6],[1,0,1,1],[2,0,2,1],[3,0,3,6],[16,0,16,1],[17,0,17,1],[27,0,27,1],[21,0,21,1],[22,0,22,1],[24,0,24,1],[23,0,23,1],[18,0,18,1],[26,0,26,1],[28,0,28,1],[35,0,35,1],[34,0,34,1],[33,0,33,1],[30,0,30,1],[32,0,32,1],[31,0,31,1],[29,0,29,6],[28,4,28,6],[34,4,34,6],[30,4,30,6],[31,4,31,6],[33,4,33,6],[32,4,32,6]]}
["Этот лист является обязательным для заполнения "]
["1*. Суммарная выручка (нетто) материнской организации и аффилированных лиц, полученная от осуществления деятельности в сфере информационных и коммуникационных технологий (в рублях, без учёта НДС).",null,"За 2024 год\n(на 31.12.2024)","За 2025 год\n(на 31.12.2025)"]
["Цифрами (руб.)",null,null,{"$f":"D35","v":0}]
["2*. Структура выручки от ИКТ-деятельности за исследуемый период. Укажите, пожалуйста, выручку за 2025 год, полученную от работ по направлениям ИКТ (в рублях и БЕЗ УЧЁТА НДС). Долевые значения выручки по направлениям (см. колонку С) приводятся автоматически. Результат в строке \"Итого по всем видам деятельности\" (ячейка С37) в процентах = 100, а в денежном выражении (ячейка D37) = показателю строки \"Выручка\" из формы №2 бухгалтерской отчётности (см. instruct.doc)."]
["Виды деятельности ",null,"Доля\nв совокупной\nвыручке (%)","Выручка по направлению \nза 2025 год (руб.)","Укажите названия (3-5) крупнейших клиентов по выполняемым работам за 2025 год"]
["Оборудование (Hardware) - производство"]
["Компьютерное оборудование ",null,{"$f":"IF(D37=0,\"\",D7/D37)","v":""}]
["Офисное оборудование",null,{"$f":"IF(D37=0,\"\",D8/D37)","v":""}]
["Коммуникационное оборудование и оборудование для передачи данных",null,{"$f":"IF(D37=0,\"\",D9/D37)","v":""}]
["Всего по разделу производство оборудования:",null,{"$f":"SUM(C7:C9)","v":0},{"$f":"SUM(D7:D9)","v":0}]
["Программное обеспечение (ПО) (Software) - разработка"]
["Готовое ПО ",null,{"$f":"IF(D37=0,\"\",D12/D37)","v":""}]
["Проектное ПО",null,{"$f":"IF(D37=0,\"\",D13/D37)","v":""}]
["Всего по разделу разработка ПО:",null,{"$f":"SUM(C12:C13)","v":0},{"$f":"SUM(D12:D13)","v":0}]
["Услуги в области ИТ (IT-Services) "]
["Консалтинг",null,{"$f":"IF(D37=0,\"\",D16/D37)","v":""}]
["Интеграция",null,{"$f":"IF(D37=0,\"\",D17/D37)","v":""}]
["Услуги поддержки, аутсорсинг",null,{"$f":"IF(D37=0,\"\",D18/D37)","v":""}]
["Обучение и сертификация",null,{"$f":"IF(D37=0,\"\",D19/D37)","v":""}]
["Всего по разделу услуги в области ИТ:",null,{"$f":"SUM(C16:C19)","v":0},{"$f":"SUM(D16:D19)","v":0}]
["Услуги в области телекоммуникаций (Communication Services)"]
["Телефония",null,{"$f":"IF(D37=0,\"\",D22/D37)","v":""}]
["Интернет-услуги",null,{"$f":"IF(D37=0,\"\",D23/D37)","v":""}]
["Организация корпоративных сетей и передача данных",null,{"$f":"IF(D37=0,\"\",D24/D37)","v":""}]
["Всего по разделу услуги в области телекоммуникаций:",null,{"$f":"SUM(C22:C24)","v":0},{"$f":"SUM(D22:D24)","v":0}]
["Дистрибуция"]
["Дистрибуция классическая",null,{"$f":"IF(D37=0,\"\",D27/D37)","v":""}]
["Дистрибуция компонентная",null,{"$f":"IF(D37=0,\"\",D28/D37)","v":""}]
["Всего по разделу дистрибуция:",null,{"$f":"SUM(C27:C28)","v":0},{"$f":"SUM(D27:D28)","v":0}]
["Поставка оборудования и ПО других производителей конечному пользователю в рамках интеграционных проектов"]
["Поставка оборудования",null,{"$f":"IF(D37=0,\"\",D31/D37)","v":""}]
["Поставка ПО",null,{"$f":"IF(D37=0,\"\",D32/D37)","v":""}]
["Всего по разделу поставка оборудования и ПО:",null,{"$f":"SUM(C31:C32)","v":0},{"$f":"SUM(D31:D32)","v":0}]
["Прочие виды деятельности в сфере ИКТ",null,{"$f":"IF(D37=0,\"\",D34/D37)","v":""},null,"Приведите, пожалуйста, в этой ячейке примеры соответствующих видов деятельности"]
["ИТОГО (по ИТ-деятельности)*:",null,{"$f":"SUM(C10,C14,C20,C25,C29,C33,C34)","v":0},{"$f":"SUM(D10,D14,D20,D25,D29,D33,D34)","v":0}]
["Виды деятельности, не имеющие отношения к ИКТ",null,{"$f":"IF(D37=0,\"\",D36/D37)","v":""},null,"Приведите, пожалуйста, в этой ячейке примеры соответствующих видов деятельности"]
["Итого по всем видам деятельности*:",null,{"$f":"SUM(C35,C36)","v":0},{"$f":"SUM(D35,D36)","v":0}]
[]
["3. (Для аналитики) Суммарная выручка от ИТ-деятельности за первые три месяца 2026, 2025 и 2024 гг. Информация запрашивается только для общей аналитики к рэнкингам (тезисы об ускорении или замедлении роста объёмов рынка).",null,null,null,"I квартал 2024 года","I квартал 2025 года","I квартал 2026 года"]
[]
[]
["4. Для подробного исследования сферы ведущих ИТ-компаний, укажите, пожалуйста, в каких из перечисленных отраслей экономики и в каком объёме (%) в 2025 году ваша компания предоставляла услуги или поставляла продукцию (порядок расчёта приводится в файле instruct.doc)."]
["Отрасли и виды экономической деятельности","Производство оборудования \n(% от выручки по направлению)","Производство ПО \n(% от выручки по направлению)","ИТ-услуги \n(% от выручки по направлению)","Услуги в области телекоммуникаций \n(% от выручки по направлению)","Дистрибуция \n(% от выручки по направлению)","Поставки оборудования и ПО \n(% от выручки по направлению)"]
["Государственное управление"]
["ЖКХ"]
["Здравоохранение"]
["Машиностроение и металлообработка"]
["Металлургический комплекс\n(в т.ч. угольная промышленность)"]
["Нефтяная и нефтегазовая промышленность"]
["Образование"]
["Пищевая промышленность"]
["Промышленность строительных материалов"]
["Связь"]
["Торговля"]
["Транспорт"]
["Химический комплекс"]
["Электроэнергетика"]
["Строительство и девелопмент"]
["Финансовые институты"]
["Прочие (укажите какие, через запятую)"]
["Итого:",{"$f":"SUM(B44:B60)","v":0},0,0,0,0,0]
["Пояснения к пунктам, отмеченных * смотрите в инструкции к анкете (файл instruct.doc)"]
["Пожалуйста, перейдите к заполнению следующего листа"]

{"sheet":"Аффилированные организации","index":2,"n_rows":3,"n_cols":6,"rows_kept":3,"cut":false,"hidden":false,"merged":[[1,0,1,5],[0,0,0,5]]}
["Этот лист является обязательным для заполнения.\nПояснения смотрите в инструкции к анкете (файл instruct.doc)."]
["Пожалуйста, укажите состав вашей группы компаний (на 31.12.2025), перечислив ниже аффилированные и зависимые организации, показатели которых были учтены в анкете. Информация запрашивается только для проверки выручки."]
["№","Наименование организации ","Город","Основной вид деятельности","ИНН","Признак аффилированных компаний (например, доля в капитале и т.д., см. instruct.doc)"]

{"sheet":"Бланк подтверждения","index":3,"n_rows":49,"n_cols":3,"rows_kept":49,"cut":false,"hidden":false,"merged":[[49,1,49,2],[50,1,50,2],[51,1,51,2],[13,1,13,2],[6,0,6,2],[41,0,41,2],[48,1,48,2],[47,1,47,2],[45,0,45,2],[46,1,46,2],[42,0,42,2],[43,0,43,2],[44,0,44,2],[12,1,12,2],[8,0,8,2],[10,1,10,2],[9,0,9,2],[11,0,11,2],[0,0,0,2],[7,0,7,2],[2,0,2,2],[3,0,3,2],[4,0,4,2],[1,0,1,2],[5,0,5,2]]}
["Куда: RAEX (ООО \"РАЭКС-Аналитика\"), (495) 617-07-77, it@raex-a.ru, http://www.raex-rr.com"]
[]
[{"$f":"\"От:  \"&'Общие сведения'!B2&\", \"&'Общие сведения'!B3&\", \"&'Общие сведения'!B7&\", \"&'Общие сведения'!B8&\"\"","v":"От:  , , , "}]
[]
["БЛАНК ПОДТВЕРЖДЕНИЯ "]
[]
["Настоящим подтверждаем достоверность информации, "]
["переданной в адрес рейтингового агентства RAEX, в том числе:"]
[]
["суммарная выручка (нетто) материнской организации и аффилированных лиц от осуществления деятельности в сфере информационных и коммуникационных технологий по итогам 2025 года:"]
[{"$f":"Показатели!D3","v":0},"руб."]
[]
["Средняя численность специалистов ",{"$f":"'Общие сведения'!D14","v":0}]
["Число компаний в группе (в т.ч. материнская организация)",{"$f":"'Общие сведения'!D11","v":0}]
["Виды деятельности","Доля в суммарной выручке (%)","Выручка за 2025 год (руб.)"]
["Компьютерное оборудование ",{"$f":"Показатели!C7","v":""},{"$f":"Показатели!D7","v":0}]
["Офисное оборудование",{"$f":"Показатели!C8","v":""},{"$f":"Показатели!D8","v":0}]
["Оборудование в области коммуникаций и передачи данных",{"$f":"Показатели!C9","v":""},{"$f":"Показатели!D9","v":0}]
["Всего по разделу производство оборудования:",{"$f":"Показатели!C10","v":0},{"$f":"Показатели!D10","v":0}]
["Готовое ПО",{"$f":"Показатели!C12","v":""},{"$f":"Показатели!D12","v":0}]
["Проектное ПО",{"$f":"Показатели!C13","v":""},{"$f":"Показатели!D13","v":0}]
["Всего по разделу разработка ПО:",{"$f":"Показатели!C14","v":0},{"$f":"Показатели!D14","v":0}]
["Консалтинг",{"$f":"Показатели!C16","v":""},{"$f":"Показатели!D16","v":0}]
["Интеграция",{"$f":"Показатели!C17","v":""},{"$f":"Показатели!D17","v":0}]
["Услуги поддержки, аутсорсинг",{"$f":"Показатели!C18","v":""},{"$f":"Показатели!D18","v":0}]
["Обучение и сертификация",{"$f":"Показатели!C19","v":""},{"$f":"Показатели!D19","v":0}]
["Всего по разделу ИТ-услуги:",{"$f":"Показатели!C20","v":0},{"$f":"Показатели!D20","v":0}]
["Телефония",{"$f":"Показатели!C22","v":""},{"$f":"Показатели!D22","v":0}]
["Интернет-услуги",{"$f":"Показатели!C23","v":""},{"$f":"Показатели!D23","v":0}]
["Организация корпоративных сетей и передача данных",{"$f":"Показатели!C24","v":""},{"$f":"Показатели!D24","v":0}]
["Всего по разделу услуги в области телекоммуникаций:",{"$f":"Показатели!C25","v":0},{"$f":"Показатели!D25","v":0}]
["Дистрибуция классическая",{"$f":"Показатели!C27","v":""},{"$f":"Показатели!D27","v":0}]
["Дистрибуция компонентная",{"$f":"Показатели!C28","v":""},{"$f":"Показатели!D28","v":0}]
["Всего по разделу дистрибуция:",{"$f":"Показатели!C29","v":0},{"$f":"Показатели!D29","v":0}]
["Поставка оборудования",{"$f":"Показатели!C31","v":""},{"$f":"Показатели!D31","v":0}]
["Поставка ПО",{"$f":"Показатели!C32","v":""},{"$f":"Показатели!D32","v":0}]
["Всего по разделу поставка оборудования и ПО:",{"$f":"Показатели!C33","v":0},{"$f":"Показатели!D33","v":0}]
["Прочие виды деятельности в сфере ИКТ",{"$f":"Показатели!C34","v":""},{"$f":"Показатели!D34","v":0}]
["ИТОГО:",{"$f":"Показатели!C35","v":0},{"$f":"Показатели!D35","v":0}]
["Другие виды деятельности",{"$f":"Показатели!C36","v":""},{"$f":"Показатели!D36","v":0}]
["Итого по всем видам деятельности:",{"$f":"Показатели!C37","v":0},{"$f":"Показатели!D37","v":0}]
[]
["Достоверность информации подтверждаю:"]
[{"$f":"'Общие сведения'!C23","v":0}]
[{"$f":"'Общие сведения'!D23","v":0}]
[]
["Место","(Подпись)"]
["для"]
["печати"]

{"sheet":"ИБ","index":4,"n_rows":26,"n_cols":5,"rows_kept":26,"cut":false,"hidden":false,"merged":[[18,0,18,1],[20,0,20,4],[15,0,15,1],[16,0,16,1],[17,0,17,1],[3,0,4,1],[8,0,8,4],[6,0,7,1],[24,1,24,4],[25,1,25,4],[0,0,0,4],[5,0,5,4],[19,0,19,4],[1,0,2,1],[10,0,10,1],[11,0,11,1],[12,0,12,1],[13,0,13,1],[9,0,9,1],[21,1,21,4],[22,1,22,4],[23,1,23,4],[14,0,14,1]]}
["Информация, приводимая в этом листе, нужна для развития проекта и суб-рэнкинга (ИБ). Возможна публикация обобщенных данных и рэнкинга. Персонифицированные данные могут быть размещены RAEX только после согласования с вашей компанией."]
["Число компаний в группе, осуществляющих деятельность в области информационной безопасности (ИБ).",null,"За 2023 год","За 2024 год","За 2025 год"]
[]
["Средняя численность специалистов, обеспечивающих деятельность в области ИБ.",null,"За 2023 год","За 2024 год","За 2025 год"]
[]
[]
["Объём выручки, полученной от осуществления деятельности в области ИБ.",null,"За 2023 год","За 2024 год","За 2025 год"]
[]
["В том числе:"]
["Разработка ПО"]
["укажите, пожалуйста, название софта или соответствующих торговых марок"]
["Интеграция"]
["Поддержка и сервис"]
["Поставки ПО других производителей"]
["Поставки оборудования"]
["Иное (укажите, пожалуйста, в этой строке какие именно услуги и работы в области ИБ осуществляла ваша компания)"]
["Всего:",null,{"$f":"C10+C12+C13+C14+C15+C16","v":0},{"$f":"D10+D12+D13+D14+D15+D16","v":0},0]
["Доля выручки (ИБ), приходящая на проекты для государственного заказчика."]
["Доля выручки (ИБ), приходящая на проекты для частного бизнеса."]
[]
["Приведите, пожалуйста, ответы на следующие вопросы в ячейках ниже:.\n-- Какие направления ИБ пользовались в 2025 году наибольшим спросом и сохраняется ли это сейчас?\n-- Оцените, по вашему опыту, со стороны какого заказчика (государство или бизнес) спрос в 2025 году преобладал?\n-- Со стороны каких отраслей экономики спрос на решения ИБ наиболее интенсивный?\n-- С чем, на ваш взгляд, связана краткосрочная перспектива спроса на решения в области ИБ?\n-- Какие проблемы, связанные с развитием ИБ, вы могли бы отметить?"]
[1]
[2]
[3]
[4]
[5]